bitfinex/quotes_SOLUSD_20251204
["timestamp","ask_amount","ask_price","bid_price","bid_amount"]
[1764878468805,0.1,139.85,139.84,33.87149362]
[1764878469246,0.1,139.85,139.84,24.56097466]
[1764878469429,0.1,139.85,139.84,12.50628922]
[1764878469724,0.1,139.85,139.84,36.71515322]
[1764878469958,0.1,139.85,139.84,28.81515322]
[1764878470227,0.1,139.85,139.84,36.71515322]
[1764878472525,0.1,139.88,139.87,16.308864]
[1764878472831,0.1,139.9,139.87,16.308864]
[1764878472832,0.1,139.9,139.89,16.308864]
[1764878473008,0.1,139.9,139.89,20.96412348]
[1764878473206,0.1,139.9,139.89,16.988864]
[1764878473418,0.1,139.9,139.87,16.988864]
[1764878473617,0.1,139.9,139.88,12.55525948]
[1764878474206,0.1,139.9,139.88,13.23525948]
[1764878474524,0.1,139.9,139.89,5.33525948]
[1764878474731,0.1,139.9,139.89,4.65525948]
[1764878475030,0.1,139.9,139.88,15.04892193]
[1764878475336,0.1,139.9,139.88,28.86412348]
[1764878475735,0.1,139.9,139.88,24.208864]
[1764878475947,4.65525948,139.89,139.84,31.475821]
[1764878476106,4.65525948,139.85,139.81,7.15246229]
[1764878476311,4.65525948,139.84,139.81,7.15255524]
[1764878476618,5.37525948,139.86,139.82,4.65525948]
[1764878477003,5.37525948,139.85,139.81,5.33525948]
[1764878477204,5.37525948,139.85,139.8,7.15302004]
[1764878477205,4.65525948,139.84,139.8,7.15302004]
[1764878477413,5.37525948,139.85,139.8,12.48827952]
[1764878477618,4.65525948,139.84,139.8,4.65525948]
[1764878477823,5.37525948,139.84,139.8,4.65525948]
[1764878478015,0.72,139.83,139.8,11.80831525]
[1764878478225,4.65525948,139.84,139.8,11.80831525]
[1764878478428,13.0704418,139.84,139.8,20.18349757]
[1764878478630,13.0704418,139.83,139.79,20.2504418]
[1764878478828,13.0704418,139.83,139.79,7.9]
[1764878479166,0.72,139.82,139.78,43.71308597]
[1764878479328,13.0704418,139.82,139.78,20.2504418]
[1764878479636,13.0704418,139.82,139.78,7.9]
[1764878479834,0.72,139.81,139.78,7.9]
[1764878480339,7.87259643,139.81,139.77,13.0304418]
[1764878480639,20.22303823,139.81,139.77,20.2504418]
[1764878480829,0.72,139.8,139.77,20.2504418]
[1764878482325,0.72,139.8,139.77,7.9]
[1764878482519,0.72,139.8,139.72,18.57233135]
[1764878482520,12.3504418,139.78,139.72,18.57233135]
[1764878482729,12.3504418,139.78,139.74,19.5065177]
[1764878482951,0.72,139.78,139.74,19.5065177]
[1764878483238,0.72,139.78,139.74,20.1865177]
[1764878483641,0.72,139.78,139.75,12.3504418]
[1764878484222,0.72,139.78,139.74,12.3504418]
[1764878484520,0.72,139.78,139.71,27.40800375]
[1764878484521,12.3504418,139.76,139.71,27.40800375]
[1764878484725,25.75975233,139.78,139.72,7.15690945]
[1764878484929,20.9704418,139.79,139.74,19.50613155]
[1764878485312,7.9,139.79,139.76,12.3504418]
[1764878485538,0.72,139.79,139.76,12.3504418]
[1764878485716,0.72,139.81,139.78,12.3504418]
[1764878487611,17.028864,139.84,139.8,12.3504418]
[1764878487819,12.3504418,139.85,139.8,12.3504418]
[1764878488014,0.72,139.84,139.8,12.3504418]
[1764878488714,7.8710515,139.84,139.78,15.75403862]
[1764878488914,7.8710515,139.84,139.8,12.3504418]
[1764878489238,0.72,139.83,139.78,15.07403862]
[1764878489444,0.72,139.83,139.79,12.3504418]
[1764878490128,20.22202635,139.83,139.77,7.83452278]
[1764878490436,20.22202635,139.83,139.79,12.3504418]
[1764878490736,0.72,139.82,139.79,12.3504418]
[1764878491754,7.87105894,139.84,139.81,12.3504418]
[1764878491934,0.72,139.83,139.8,12.3504418]
[1764878492725,13.0704418,139.83,139.78,7.92]
[1764878492915,13.0704418,139.83,139.79,12.3504418]
[1764878493118,0.72,139.82,139.79,12.3504418]
[1764878493641,7.87210151,139.82,139.79,12.3504418]
[1764878493945,20.22254331,139.82,139.77,12.3504418]
[1764878494121,0.72,139.81,139.77,12.3504418]
[1764878494518,21.16038672,139.8,139.73,0.68]
[1764878494824,12.3504418,139.77,139.72,12.3504418]
[1764878495016,12.3504418,139.77,139.73,12.3504418]
[1764878495219,0.72,139.76,139.73,12.3504418]
[1764878495630,0.72,139.76,139.72,12.3504418]
[1764878496236,0.72,139.76,139.71,7.83727184]
[1764878496430,7.87519417,139.76,139.72,12.3504418]
[1764878497709,7.15519417,139.76,139.71,7.83727184]
[1764878497917,7.87519417,139.76,139.72,12.3504418]
[1764878498216,7.87519417,139.76,139.72,13.0304418]
[1764878498416,0.72,139.75,139.72,4.66028852]
[1764878498720,0.72,139.75,139.71,11.81793157]
[1764878498924,0.72,139.75,139.72,4.66028852]
[1764878500318,7.87472539,139.77,139.73,4.66028852]
[1764878500513,13.47023344,139.78,139.73,4.66028852]
[1764878500514,0.72,139.76,139.73,4.66028852]
[1764878500841,7.15425707,139.78,139.74,5.34028852]
[1764878500842,7.87425707,139.78,139.74,5.34028852]
[1764878501727,7.87425707,139.78,139.74,12.49641618]
[1764878502117,7.15425707,139.78,139.74,5.34028852]
[1764878502339,0.72,139.77,139.74,5.34028852]
[1764878502543,0.72,139.77,139.74,12.49641304]
[1764878502767,9.50994492,139.81,139.76,4.66028852]
[1764878502926,0.66,139.8,139.77,4.66028852]
[1764878503124,0.66,139.8,139.76,4.66028852]
[1764878503441,4.66028852,139.79,139.75,4.66028852]
[1764878503741,11.81434631,139.79,139.75,4.66028852]
[1764878503922,7.81405779,139.79,139.75,5.37028852]
[1764878504122,7.15405779,139.79,139.75,5.37028852]
[1764878504339,0.66,139.78,139.75,5.37028852]
[1764878504717,0.66,139.78,139.75,12.52588482]
[1764878504936,7.15405779,139.79,139.72,4.66028852]
[1764878504937,5.32028852,139.77,139.72,4.66028852]
[1764878505137,5.32028852,139.76,139.71,5.37028852]
[1764878505533,0.66,139.75,139.71,12.52764073]
[1764878506523,5.32028852,139.75,139.7,36.04718832]
[1764878506723,12.47609529,139.75,139.71,5.37028852]
[1764878507047,0.66,139.74,139.7,36.75718832]
[1764878507550,0.66,139.74,139.7,36.04718832]
[1764878507754,0.66,139.74,139.7,36.75718832]
[1764878507953,0.66,139.74,139.7,36.04718832]
[1764878508144,4.66028852,139.75,139.71,0.71]
[1764878508460,5.32028852,139.75,139.71,0.71]
[1764878508749,8.80994492,139.77,139.73,4.66028852]
[1764878509042,14.13023344,139.77,139.73,4.66028852]
[1764878509235,0.66,139.76,139.72,4.66028852]
[1764878509545,4.66028852,139.77,139.72,5.37028852]
[1764878509845,7.81409929,139.78,139.74,4.66028852]
[1764878510041,12.47438781,139.78,139.73,7.86625833]
[1764878510246,0.66,139.82,139.77,4.66028852]
[1764878510419,103.69999999,139.88,139.78,2.98014662]
[1764878510420,2.98014662,139.83,139.78,2.98014662]
[1764878510741,10.13066503,139.85,139.8,2.98014662]
[1764878510925,10.79066503,139.85,139.8,2.98014662]
[1764878511127,0.66,139.84,139.8,2.98014662]
[1764878511722,7.81126446,139.84,139.8,2.98014662]
[1764878512347,7.81126446,139.84,139.8,14.95617051]
[1764878512735,7.81126446,139.84,139.78,7.15379672]
[1764878512736,7.75319408,139.83,139.78,7.15379672]
[1764878512937,0.66,139.83,139.8,7.09319408]
[1764878513937,7.81155461,139.83,139.8,7.09319408]
[1764878514333,0.66,139.83,139.8,7.09319408]
[1764878515367,14.90476762,139.83,139.79,7.09319408]
[1764878515552,7.81157354,139.83,139.79,7.80319408]
[1764878516544,7.81157354,139.83,139.79,0.71]
[1764878516722,7.81157354,139.83,139.79,7.80319408]
[1764878516918,7.81157354,139.83,139.79,14.95676052]
[1764878517252,14.90476762,139.83,139.79,7.80319408]
[1764878517449,15.96112847,139.84,139.8,7.80319408]
[1764878517632,23.71432255,139.84,139.8,7.09319408]
[1764878517838,0.66,139.83,139.8,7.09319408]
[1764878519253,7.81167623,139.83,139.8,7.09319408]
[1764878519857,7.81167623,139.83,139.79,14.95665373]
[1764878520233,9.46994492,139.82,139.76,16.308864]
[1764878520431,9.46994492,139.82,139.75,7.80319408]
[1764878520432,7.09319408,139.79,139.75,7.80319408]
[1764878520752,7.81167623,139.83,139.78,7.09319408]
[1764878520950,7.92,139.84,139.77,24.228864]
[1764878521248,23.71336975,139.86,139.82,7.09319408]
[1764878521456,16.62017567,139.86,139.82,7.09319408]
[1764878521780,15.96017567,139.86,139.82,7.80319408]
[1764878521959,16.62017567,139.86,139.82,7.80319408]
[1764878522251,23.71336975,139.86,139.82,7.80319408]
[1764878522456,0.66,139.88,139.83,7.80319408]
[1764878522633,0.66,139.88,139.84,7.09319408]
[1764878522833,22.92137252,139.9,139.85,7.09319408]
[1764878523033,22.92137252,139.9,139.85,7.80319408]
[1764878523252,0.1,139.9,139.86,7.80319408]
[1764878524353,7.09319408,139.89,139.84,0.71]
[1764878524553,7.14896063,139.89,139.84,14.95421122]
[1764878524737,14.90215471,139.89,139.84,14.95421122]
[1764878525835,0.66,139.89,139.85,0.71]
[1764878526055,0.1,139.9,139.85,7.80319408]
[1764878526254,0.1,139.9,139.86,15.01319408]
[1764878526462,0.1,139.9,139.87,7.85947219]
[1764878526637,0.1,139.9,139.87,0.71]
[1764878527148,0.1,139.9,139.87,7.85942567]
[1764878527355,0.1,139.9,139.89,7.09319408]
[1764878527857,0.1,139.9,139.89,7.80319408]
[1764878528253,0.1,139.9,139.89,0.71]
[1764878528553,0.1,139.9,139.87,7.92]
[1764878528756,0.1,139.9,139.87,15.72319408]
[1764878529350,7.85319408,139.9,139.85,0.71]
[1764878529556,0.1,139.9,139.89,7.09319408]
[1764878529735,0.1,139.9,139.89,15.72319408]
[1764878530445,0.1,139.9,139.89,22.87166788]
[1764878530845,0.1,139.9,139.89,39.18053188]
[1764878531834,1e-08,139.9,139.89,31.6816128]
[1764878532039,0.1,139.91,139.9,8.80994492]
[1764878532340,1e-08,139.91,139.9,16.613139]
[1764878532538,0.1,139.95,139.93,25.11880892]
[1764878532741,0.1,140.0,139.98,16.308864]
[1764878533053,0.1,140.0,139.99,15.70319408]
[1764878533938,0.1,140.0,139.91,75.0]
[1764878534134,0.8,140.0,139.96,7.09319408]
[1764878534337,0.8,140.0,139.96,15.01319408]
[1764878534552,7.09319408,139.97,139.93,16.308864]
[1764878534756,7.09319408,139.97,139.93,23.45514337]
[1764878534940,7.79319408,139.96,139.92,15.75682491]
[1764878535267,7.79319408,139.96,139.92,32.06568891]
[1764878535434,0.7,139.98,139.93,7.83629713]
[1764878535634,7.09319408,139.97,139.93,7.83629713]
[1764878535857,0.7,139.98,139.93,7.83629713]
[1764878536062,7.79319408,139.97,139.93,24.14516113]
[1764878536564,0.8,140.0,139.94,0.69]
[1764878536738,7.89319408,140.0,139.95,15.01319408]
[1764878537084,7.89319408,140.0,139.96,23.40205808]
[1764878537085,0.1,140.0,139.96,23.40205808]
[1764878537273,0.1,140.0,139.96,24.09205808]
[1764878537643,7.89319408,140.0,139.96,16.998864]
[1764878537966,7.89319408,140.0,139.95,15.01319408]
[1764878537967,7.09319408,139.98,139.95,7.92]
[1764878538167,7.09319408,139.97,139.94,16.308864]
[1764878538353,7.09319408,139.98,139.94,23.45460006]
[1764878538761,7.79319408,139.97,139.93,7.92]
[1764878538967,7.79319408,139.97,139.92,7.09319408]
[1764878538968,7.09319408,139.96,139.92,7.92]
[1764878539139,0.7,139.96,139.92,22.1600583]
[1764878539338,7.09319408,139.97,139.93,0.69]
[1764878539639,7.79319408,139.96,139.92,15.06686422]
[1764878540075,14.93821195,139.96,139.92,15.06686422]
[1764878540256,7.79319408,139.95,139.92,7.92]
[1764878540443,7.79319408,139.96,139.92,15.06674908]
[1764878540653,7.79319408,139.96,139.92,15.75674908]
[1764878540886,7.09319408,139.93,139.89,0.69]
[1764878541064,7.09319408,139.92,139.89,7.14841675]
[1764878541267,0.7,139.94,139.89,7.14841675]
[1764878541450,7.09319408,139.93,139.89,7.14841675]
[1764878541955,7.79319408,139.92,139.88,23.45782425]
[1764878542155,7.79319408,139.92,139.88,31.37782425]
[1764878542452,7.79319408,139.92,139.88,32.06782425]
[1764878543094,7.14661954,139.93,139.88,31.37782425]
[1764878543386,7.09319408,139.92,139.89,0.69]
[1764878543558,7.09319408,139.92,139.88,31.37782425]
[1764878543759,0.7,139.92,139.88,39.16101833]
[1764878543965,7.79319408,139.92,139.88,32.06782425]
[1764878544873,7.84540907,139.95,139.9,7.09319408]
[1764878545065,7.09319408,139.93,139.88,30.55101833]
[1764878545358,7.09319408,139.92,139.89,7.92]
[1764878545570,7.09319408,139.93,139.89,7.92]
[1764878545976,7.79319408,139.93,139.89,7.92]
[1764878546176,14.93964685,139.93,139.89,7.92]
[1764878546481,16.72994492,139.96,139.89,15.01319408]
[1764878546482,7.14598484,139.94,139.89,15.01319408]
[1764878546804,7.79319408,139.93,139.89,15.06829042]
[1764878547099,0.7,139.96,139.9,7.78319408]
[1764878547389,7.09319408,139.95,139.9,7.78319408]
[1764878547587,7.09319408,139.93,139.89,7.92]
[1764878547783,7.79319408,139.92,139.89,15.06843047]
[1764878547983,7.09319408,139.94,139.89,22.85162455]
[1764878548189,7.09319408,139.94,139.89,40.72280905]
[1764878548398,7.79319408,139.94,139.89,40.72280905]
[1764878548988,0.7,139.93,139.89,40.72280905]
[1764878549694,7.09319408,139.92,139.89,15.06843047]
[1764878549896,7.79319408,139.93,139.89,15.06843047]
[1764878550193,0.7,139.92,139.89,15.06843047]
[1764878550691,7.8469732,139.92,139.88,30.55098935]
[1764878550998,7.8469732,139.92,139.88,39.16098935]
[1764878551179,0.7,139.92,139.89,7.14842416]
[1764878551996,7.84705393,139.92,139.88,39.16068538]
[1764878552197,0.7,139.92,139.88,22.16204995]
[1764878552374,0.7,139.92,139.88,22.85204995]
[1764878552692,0.7,139.92,139.88,15.75885587]
[1764878553071,9.50994492,139.94,139.89,0.69]
[1764878553276,7.79319408,139.96,139.91,7.09319408]
[1764878553789,0.7,139.95,139.91,7.78319408]
[1764878554184,7.79319408,139.96,139.92,7.8369411]
[1764878554601,0.7,139.95,139.92,7.8369411]
[1764878554799,0.7,139.95,139.92,7.1469411]
[1764878555107,7.79319408,139.95,139.91,15.06721654]
[1764878555271,7.79319408,139.95,139.91,15.75721654]
[1764878555699,7.79319408,139.94,139.9,7.14790175]
[1764878555896,7.09319408,139.93,139.9,7.14790175]
[1764878556092,7.79319408,139.93,139.9,7.14790175]
[1764878556284,7.79319408,139.93,139.89,16.308864]
[1764878556285,7.79319408,139.92,139.89,16.308864]
[1764878556778,0.7,139.92,139.89,23.45730764]
[1764878558006,14.94014299,139.92,139.89,23.45730764]
[1764878558184,1.09999999,140.02,139.9,7.78319408]
[1764878558185,0.7,139.96,139.9,7.78319408]
[1764878558506,0.7,139.96,139.92,7.09319408]
[1764878558884,0.7,139.96,139.92,7.78319408]
[1764878559203,0.7,139.96,139.93,7.78319408]
[1764878559788,14.23729835,139.98,139.94,7.14591967]
[1764878559999,14.23729835,139.98,139.94,7.83591967]
[1764878560201,14.93729835,139.98,139.94,7.83591967]
[1764878560406,0.7,139.97,139.94,7.14591967]
[1764878561496,14.23729835,139.98,139.94,7.83591967]
[1764878561704,0.7,139.97,139.94,7.14591967]
[1764878562007,0.7,139.97,139.93,7.14643035]
[1764878562204,14.23729835,139.98,139.93,7.14643035]
[1764878562389,14.93729835,139.98,139.94,0.69]
[1764878562706,0.7,139.97,139.94,0.69]
[1764878562894,0.7,139.97,139.93,22.15962443]
[1764878563096,0.7,139.97,139.93,22.81962443]
[1764878563404,14.92691623,139.99,139.94,7.75319408]
[1764878563708,16.593139,139.98,139.93,7.14643035]
[1764878564005,7.09319408,139.97,139.93,7.14643035]
[1764878564185,7.78319408,139.97,139.93,7.14643035]
[1764878564379,7.78319408,139.96,139.92,31.37557702]
[1764878564785,7.78319408,139.96,139.92,32.03557702]
[1764878565201,0.69,139.96,139.92,39.1287711]
[1764878565399,0.69,139.96,139.92,38.4687711]
[1764878565605,14.92716032,139.98,139.93,0.66]
[1764878565806,7.78319408,139.98,139.93,0.66]
[1764878566003,7.78319408,139.97,139.92,56.33612387]
[1764878566312,7.78319408,139.97,139.92,56.99612387]
[1764878566493,0.69,139.96,139.92,56.99612387]
[1764878567004,7.78319408,139.96,139.92,32.03557702]
[1764878567208,0.69,139.96,139.92,32.03557702]
[1764878567396,0.69,139.96,139.92,39.1287711]
[1764878567592,14.92822134,139.96,139.92,32.03557702]
[1764878568005,7.14461739,139.97,139.93,0.66]
[1764878568213,14.23781147,139.97,139.93,0.66]
[1764878568398,0.69,139.96,139.93,0.66]
[1764878568597,0.69,139.96,139.92,56.99612387]
[1764878568992,0.69,139.96,139.92,39.1287711]
[1764878570397,0.69,139.96,139.92,36.68250337]
[1764878570793,7.83498734,139.96,139.92,36.68250337]
[1764878571003,12.48191369,139.96,139.92,24.228864]
[1764878571318,0.69,139.95,139.92,32.03579614]
[1764878571608,12.48191369,139.96,139.92,32.03579614]
[1764878571995,5.33692635,139.95,139.91,7.14738753]
[1764878572191,4.64692635,139.94,139.89,7.8083056]
[1764878572396,4.64692635,139.93,139.89,7.1483056]
[1764878572596,5.33692635,139.93,139.89,7.1483056]
[1764878572814,0.69,139.92,139.89,7.1483056]
[1764878573907,0.69,139.92,139.89,7.8083056]
[1764878575014,11.79353962,139.93,139.89,7.8083056]
[1764878575015,4.64692635,139.93,139.89,7.8083056]
[1764878575315,5.33692635,139.93,139.89,7.8083056]
[1764878575617,0.69,139.93,139.89,29.66641645]
[1764878575803,12.48245214,139.95,139.9,5.30692635]
[1764878576422,0.69,139.94,139.9,0.66]
[1764878576920,0.69,139.94,139.89,37.35164716]
[1764878576921,20.1682284,139.94,139.89,12.33215706]
[1764878577117,12.33215706,139.92,139.89,7.80820603]
[1764878577317,13.02215706,139.93,139.89,7.80820603]
[1764878578322,0.69,139.93,139.9,7.80795632]
[1764878578520,0.69,139.95,139.9,7.80795632]
[1764878578711,13.02215706,139.94,139.9,7.14795632]
[1764878579101,0.69,139.93,139.9,7.80795632]
[1764878580923,12.33215706,139.92,139.89,7.14832545]
[1764878581224,12.33215706,139.9,139.83,0.66]
[1764878581426,12.33215706,139.9,139.81,0.66]
[1764878581427,12.33215706,139.85,139.81,0.66]
[1764878581635,12.33215706,139.84,139.82,7.15202237]
[1764878581926,12.33215706,139.85,139.82,7.15202237]
[1764878582224,12.33215706,139.85,139.81,16.968864]
[1764878582427,12.33215706,139.83,139.8,31.73384786]
[1764878582624,12.33215706,139.85,139.82,7.15205263]
[1764878583030,13.02215706,139.84,139.8,31.73384786]
[1764878583212,12.33215706,139.83,139.8,31.73384786]
[1764878583412,12.33215706,139.83,139.8,32.39384786]
[1764878583617,0.69,139.84,139.78,0.2]
[1764878583618,0.69,139.82,139.78,0.2]
[1764878583930,12.33215706,139.81,139.78,7.35409929]
[1764878584133,12.33215706,139.82,139.78,8.01409929]
[1764878584309,13.02215706,139.82,139.78,8.01409929]
[1764878584614,13.02215706,139.82,139.78,7.35409929]
[1764878584810,13.02215706,139.82,139.79,0.66]
[1764878585012,12.33215706,139.82,139.78,7.35409929]
[1764878585311,12.33215706,139.8,139.78,0.2]
[1764878585527,12.33215706,139.79,139.78,0.2]
[1764878586215,13.02215706,139.79,139.78,0.2]
[1764878586725,12.33215706,139.79,139.78,0.2]
[1764878586907,13.02215706,139.79,139.78,0.2]
[1764878587225,28.9856895,139.79,139.78,0.2]
[1764878587528,12.33215706,139.79,139.78,0.2]
[1764878587729,20.96215706,139.81,139.78,7.35407793]
[1764878588314,13.02215706,139.8,139.78,0.2]
[1764878589423,21.83210198,139.79,139.78,0.2]
[1764878590227,7.15266457,139.81,139.78,0.2]
[1764878590533,13.02215706,139.8,139.78,0.2]
[1764878590719,13.02215706,139.81,139.78,7.35401784]
[1764878591036,12.33215706,139.81,139.78,8.01401784]
[1764878591615,13.02215706,139.83,139.79,0.66]
[1764878591815,12.33215706,139.83,139.79,0.66]
[1764878592039,13.02215706,139.82,139.78,8.01401784]
[1764878592234,12.33215706,139.83,139.78,8.01401784]
[1764878592536,0.69,139.83,139.78,8.01401784]
[1764878592737,12.33215706,139.82,139.79,0.66]
[1764878592940,13.02215706,139.83,139.79,0.66]
[1764878593520,13.02215706,139.83,139.79,7.81329516]
[1764878593927,7.94,139.85,139.8,0.7]
[1764878594124,12.33215706,139.84,139.8,0.7]
[1764878594336,13.04215706,139.84,139.8,0.7]
[1764878595052,7.94,139.85,139.78,0.2]
[1764878595053,12.33215706,139.81,139.78,0.2]
[1764878595541,12.33215706,139.81,139.78,8.05406407]
[1764878596444,19.48475976,139.81,139.78,0.9]
[1764878596863,12.33215706,139.81,139.78,8.05405713]
[1764878597066,8.80994492,139.83,139.78,8.05405713]
[1764878597067,102.7,139.84,139.8,12.33215706]
[1764878597256,122.89324796,139.84,139.79,13.03215706]
[1764878597661,13.04215706,139.83,139.79,7.85311486]
[1764878597868,12.33215706,139.83,139.79,7.15311486]
[1764878598070,110.5610909,139.84,139.8,0.7]
[1764878598251,103.41,139.84,139.8,0.7]
[1764878598453,115.74215706,139.84,139.8,0.7]
[1764878598646,103.41,139.84,139.8,0.7]
[1764878599251,102.7,139.84,139.81,12.33215706]
[1764878599457,12.33215706,139.86,139.82,0.7]
[1764878599650,13.04215706,139.86,139.82,7.85164382]
[1764878599855,20.19226791,139.86,139.82,7.85164382]
[1764878600257,13.04215706,139.86,139.82,7.85164382]
[1764878600852,20.19225206,139.86,139.82,7.85164382]
[1764878601058,13.04215706,139.86,139.82,7.15164382]
[1764878601257,13.04215706,139.86,139.82,7.85164382]
[1764878601478,12.33215706,139.86,139.83,0.7]
[1764878601970,20.19226804,139.86,139.82,7.15164382]
[1764878602157,12.33215706,139.84,139.8,7.15266364]
[1764878602360,12.33215706,139.84,139.81,7.15254715]
[1764878602555,12.33215706,139.84,139.81,7.85254715]
[1764878602756,13.04215706,139.84,139.81,0.7]
[1764878603271,13.04215706,139.84,139.81,7.85248611]
[1764878604151,12.33215706,139.83,139.81,0.7]
[1764878604369,13.04215706,139.83,139.79,7.85339216]
[1764878604566,12.33215706,139.83,139.8,7.85301778]
[1764878604763,12.33215706,139.81,139.78,0.2]
[1764878604977,12.33215706,139.79,139.78,0.2]
[1764878605368,13.04215706,139.79,139.78,0.2]
[1764878605566,21.85210198,139.79,139.78,0.2]
[1764878606372,29.0056895,139.79,139.78,0.2]
[1764878612175,36.9456895,139.79,139.78,0.2]
[1764878614279,15.09358752,139.79,139.78,0.2]
[1764878614478,27.42574458,139.79,139.78,0.2]
[1764878614871,28.13574458,139.79,139.78,0.2]
[1764878615193,19.48574458,139.79,139.78,0.2]
[1764878615365,8.80994492,139.81,139.78,0.9]
[1764878615569,7.15263497,139.81,139.78,0.9]
[1764878615777,19.48479203,139.81,139.78,0.9]
[1764878616291,21.14210198,139.79,139.78,0.2]
[1764878616593,28.2956895,139.79,139.78,0.2]
[1764878616789,29.0056895,139.79,139.78,0.2]
[1764878618786,0.71,139.81,139.78,0.2]
[1764878618987,23.90199755,139.82,139.78,0.2]
[1764878618988,12.33215706,139.79,139.78,0.2]
[1764878619496,12.33215706,139.8,139.78,0.2]
[1764878619870,12.33215706,139.8,139.78,7.35404794]
[1764878620067,20.27215706,139.82,139.79,0.7]
[1764878620686,7.94,139.82,139.79,0.7]
[1764878620890,34.18532168,139.85,139.79,13.03215706]
[1764878620891,8.80994492,139.85,139.79,13.03215706]
[1764878621098,12.33215706,139.84,139.8,0.7]
[1764878621990,12.33215706,139.84,139.8,7.85304516]
[1764878622191,12.33215706,139.84,139.81,0.7]
[1764878622371,19.48225607,139.86,139.81,13.03215706]
[1764878622896,19.48225607,139.86,139.82,0.67]
[1764878623476,7.15009901,139.86,139.82,7.82184754]
[1764878623678,7.15009901,139.86,139.83,0.71]
[1764878623876,19.48225607,139.86,139.83,0.71]
[1764878624078,12.33215706,139.85,139.83,0.71]
[1764878624688,12.33215706,139.85,139.81,0.71]
[1764878624982,19.48225607,139.86,139.82,7.15204228]
[1764878625396,19.48225607,139.86,139.83,0.71]
[1764878626301,12.33215706,139.86,139.83,7.86143474]
[1764878626600,12.33215706,139.86,139.83,0.71]
[1764878628282,7.15016706,139.86,139.83,0.71]
[1764878628497,28.11180102,139.87,139.83,7.86147642]
[1764878628808,12.33215706,139.86,139.83,7.86147642]
[1764878630692,20.17224295,139.86,139.83,0.71]
[1764878630893,20.17224295,139.86,139.81,7.86238368]
[1764878630894,13.02215706,139.85,139.81,7.86238368]
[1764878631278,13.02215706,139.85,139.82,0.71]
[1764878631484,12.33215706,139.85,139.82,0.71]
[1764878632398,12.33215706,139.85,139.79,0.71]
[1764878632399,7.094812,139.83,139.79,0.71]
[1764878632902,7.094812,139.83,139.78,23.603676]
[1764878632903,7.094812,139.8,139.78,0.2]
[1764878633115,15.014812,139.8,139.78,0.2]
[1764878633886,7.094812,139.79,139.78,0.2]
[1764878634283,14.24839952,139.79,139.78,0.2]
[1764878636026,14.93839952,139.79,139.78,0.2]
[1764878636329,23.74834444,139.79,139.78,0.2]
[1764878639414,23.74834444,139.79,139.78,0.097]
[1764878639916,8.80994492,139.78,139.77,0.2]
[1764878640118,24.51475692,139.78,139.77,0.2]
[1764878640311,17.41994492,139.78,139.77,0.2]
[1764878640528,27.55800157,139.78,139.77,0.2]
[1764878640728,10.13805665,139.78,139.77,0.2]
[1764878640913,10.90395736,139.78,139.77,0.2]
[1764878641516,7.92,139.78,139.77,0.2]
[1764878641816,103.69999999,139.87,139.77,0.91]
[1764878642026,14.40811516,139.88,139.77,25.9510561]
[1764878642027,2.98395736,139.83,139.77,25.9510561]
[1764878642336,2.98395736,139.84,139.78,3.69395736]
[1764878642538,15.09070411,139.85,139.8,2.98395736]
[1764878642755,2.98395736,139.84,139.79,10.84754488]
[1764878642942,2.98395736,139.82,139.79,0.71]
[1764878643251,2.98395736,139.82,139.8,0.71]
[1764878644344,14.24789331,139.82,139.8,0.71]
[1764878645055,7.15210866,139.82,139.8,0.71]
[1764878645264,23.05744698,139.83,139.8,0.71]
[1764878645559,7.09578465,139.81,139.78,0.71]
[1764878646960,7.09578465,139.79,139.77,0.2]
[1764878647331,7.09578465,139.79,139.77,0.91]
[1764878648029,14.24956263,139.79,139.77,0.91]
[1764878648430,7.09578465,139.78,139.77,0.2]
[1764878648755,15.90572957,139.78,139.77,0.2]
[1764878648955,16.59572957,139.78,139.77,0.2]
[1764878650174,23.74982886,139.78,139.77,0.2]
[1764878651594,7.15409929,139.78,139.77,0.91]
[1764878651888,7.09578465,139.78,139.77,0.2]
[1764878654755,16.72994492,139.8,139.77,0.88]
[1764878654756,15.01578465,139.8,139.77,0.88]